Cogmind - Beta 15 @@@ ROGUE MODE // 2025.09.10 @ 11:17:29 Player: MechN Result: Destroyed by L-31 Rogue with Katana Performance ------------- Evolutions (2) 1000 Regions Visited (3) 600 Robots Destroyed (17) 85 Value Destroyed (587) 587 Prototype IDs (1) 20 Alien Tech Used (0) 0 Bonus (0) 0 TOTAL SCORE: 2292 Bonus ------- None Cogmind --------- Core Integrity 0/550 Matter 300/300 Energy 65/100 System Corruption 0% Temperature Cool (0) Movement Core (100) Ox1 Location -8/Materials Parts ------- > --- POWER (1) -------- (None) > --- PROPULSION (3) --- (None) > --- UTILITY (4) ------ (None) > --- WEAPON (3) ------- Backup Laser III Backup Laser III > --- INVENTORY (5) ---- (None) Peak State ------------ > --- POWER ------------ Backup Power III > --- PROPULSION ------- Backup Propulsion III Backup Propulsion III > --- UTILITY ---------- Backup Plating III Hardened Medium Armor Plating > --- WEAPON ----------- Backup Laser III Backup Laser III > --- INVENTORY -------- (None) [Rating: 21] Favorites ----------- Power Light Ion Engine Engine Light Ion Engine Power Core Light Nuclear Core Propulsion Aluminum Leg Leg Aluminum Leg Wheel Wheel Hover Unit Backup Propulsion III Utility Medium Matter Pod Device Seismic Detector Storage Medium Matter Pod Protection Backup Plating III Weapon Advanced Beam Cannon Energy Gun Small Laser Energy Cannon Advanced Beam Cannon Ballistic Gun Assault Rifle Ballistic Cannon Light Cannon Launcher Grenade Launcher Special Weapon Plasma Cutter Build | -11 -10 -9 -8 ------- Run | Yrd Mat Mat Mat Slots Evolved 4 | . . 2 2 Power . | . . . . Propulsion 1 | . . 1 . Utility 2 | . . 1 1 Weapon 1 | . . . 1 Parts Attached 28 | 5 2 9 12 Power 5 | 1 . 1 3 Engine 4 | 1 . 1 2 Core 1 | . . . 1 Reactor . | . . . . Propulsion 8 | 2 1 2 3 Treads . | . . . . Leg 6 | 2 1 2 1 Wheel 2 | . . . 2 Hover . | . . . . Flight . | . . . . Utility 6 | . . 2 4 Device 3 | . . 1 2 Storage 1 | . . 1 . Processor . | . . . . Hackware . | . . . . Protection 2 | . . . 2 Artifact . | . . . . Weapon 9 | 2 1 4 2 Energy Gun 1 | . . 1 . Energy Cannon 3 | . . 1 2 Ballistic Gun 2 | 2 . . . Ballistic Cannon 1 | . 1 . . Launcher 1 | . . 1 . Special Weapon 1 | . . 1 . Impact Weapon . | . . . . Slashing Weapon . | . . . . Piercing Weapon . | . . . . Special Melee Weapon . | . . . . Unidentified Prototypes 1 | . . 1 . Parts Lost 27 | . 1 1 25 Power 5 | . 1 . 4 Propulsion 10 | . . . 10 Utility 7 | . . . 7 Weapon 5 | . . 1 4 Highest Loss Streak 14 | . 1 1 14 To Critical Strikes . | . . . . Average Backups 3 | 1 4 4 2 Power . | . . . . Propulsion 2 | 1 3 3 2 Utility . | . . . . Weapon . | . 1 1 . Tool/Special . | . . . . Unused Backups . | . . . . Power . | . . . . Propulsion . | . . . . Utility . | . . . . Weapon . | . . . . Tool/Special . | . . . . Average Slot Usage (%) 64 | . 71 60 64 Engine 6 | . 14 1 7 Leg 23 | . 28 31 16 Device 4 | . . . 9 Storage 3 | . . 6 3 Protection 2 | . . . 5 Energy Gun 4 | . . 1 8 Energy Cannon 5 | . . 3 8 Ballistic Gun 5 | . 22 1 . Ballistic Cannon 2 | . 5 2 . Launcher 1 | . . 5 . Special Weapon 2 | . . 5 1 Peak Build Rating 21 | 5 5 10 21 Average Rating 8 | 4 5 6 12 On Entrance 4 | . 5 4 10 Naked Turns 8 | . . . 8 Heaviest Build 27 | 6 8 13 27 Greatest Support 30 | 20 20 30 30 Greatest Overweight (x) 5 | . . . 5 Average Overweight (x) . | . . . . Largest Inventory Capacity 5 | 5 5 5 5 Average Capacity 5 | 5 5 5 5 Most Carried 5 | 4 5 5 5 Average Carried 3 | 1 4 4 2 Final Capacity 5 | 5 5 5 5 Final Carried 5 | 4 5 5 . Class Distribution -------------------- 73% | Mutant 14% | Scavenger-Mutant 8% | Scavenger-Tank 3% | Scavenger-Gunner Dominant Class ---------------- Mutant | -10/Materials Mutant | -9/Materials Mutant | -8/Materials Resources | -11 -10 -9 -8 ----------- Run | Yrd Mat Mat Mat Matter Collected 609 | 254 98 100 157 Remotely . | . . . . Salvage Created 685 | 44 189 40 412 Parts 37 | 2 7 5 23 Haulers Intercepted . | . . . . Recyclers Shooed . | . . . . Parts Field Recycled . | . . . . Retrieved Matter . | . . . . Parts Self-Destructed . | . . . . Prevented . | . . . . Kills | -11 -10 -9 -8 ------- Run | Yrd Mat Mat Mat Combat Hostiles Destroyed 15 | 1 4 1 9 Guns 8 | 1 1 . 6 Cannons 6 | . 3 1 2 Classes Destroyed 5 | 1 2 1 1 Worker 1 | . . 1 . Recycler 1 | . 1 . . Swarmer 5 | . 2 . 3 Grunt 8 | 1 2 1 4 Sentry 2 | . . . 2 Best Kill Streak 4 | 1 3 1 4 Combat Bots Only 4 | 1 2 1 4 Max Kills in Single Turn 1 | 1 1 1 1 Gunslinging . | . . . . Exploded . | . . . . Melee . | . . . . Uniques/NPCs Destroyed . | . . . . Combat | -11 -10 -9 -8 -------- Run | Yrd Mat Mat Mat Hostile Shots Fired 234 | 4 39 15 176 Missed 62 | 2 14 3 43 Hits 172 | 2 25 12 133 Melee 5 | . . . 5 Projectile 167 | 2 25 12 128 Critical Strikes 4 | . . . 4 Damage Taken 2600 | 23 268 162 2147 Core 625 | . 54 11 560 Absorbed by Shields . | . . . . Core Remaining (%) 91 | 100 78 97 . Volleys Fired 60 | 1 14 3 42 Largest 3 | 2 2 2 3 Hottest 203 | 40 50 108 203 Shots Fired 118 | 2 28 6 82 Gun 75 | 2 19 2 52 Cannon 42 | . 9 3 30 Launcher 1 | . . 1 . Special . | . . . . Kinetic 30 | 2 28 . . Thermal 87 | . . 5 82 Explosive 1 | . . 1 . Electromagnetic . | . . . . Robot Hit Streak 12 | 1 5 3 12 Robot Miss Streak 5 | 1 3 1 5 Penetration Max . | . . . . Secondary Targets 4 | . . . 4 Max Gunslinging Chain 1 | . . . 1 Shots Hit Robots 72 | 1 12 4 55 Core Hits 33 | 2 6 3 22 Critical Kills . | . . . . Critical Parts Destroyed 1 | . 1 . . Critical Strikes 2 | . 2 . . Destroy 1 | . 1 . . Blast 1 | . 1 . . Melee Attacks . | . . . . Impact . | . . . . Slashing . | . . . . Piercing . | . . . . Sneak Attacks . | . . . . Combat Hostiles . | . . . . Follow-up Attacks . | . . . . Damage Inflicted 1201 | 16 208 78 899 Guns 626 | 10 84 10 522 Cannons 531 | . 124 42 365 Explosions 26 | . . 26 . Melee . | . . . . Ramming 18 | 6 . . 12 Kinetic 218 | 10 208 . . Thermal 939 | . . 52 887 Explosive 26 | . . 26 . Electromagnetic . | . . . . Impact . | . . . . Slashing . | . . . . Piercing . | . . . . Highest Corruption . | . . . . Average Corruption . | . . . . Corruption Purged . | . . . . Corruption Blocked . | . . . . Overload Shots . | . . . . Overflow Damage 18 | . . . 18 Projectiles 18 | . . . 18 Explosions . | . . . . Melee . | . . . . Knockbacks 1 | . 1 . . Impact . | . . . . Kinetic 1 | . 1 . . Secondary . | . . . . Self-Inflicted Damage 1 | . . . 1 Shots . | . . . . Rammed 1 | . . . 1 Targets Rammed 8 | 1 . 1 6 Kicked 7 | 1 . 1 5 Crushed . | . . . . Highest Temperature 724 | . 5 54 724 Average Temperature 169 | . 2 22 182 Received Heat Transfer 1095 | 12 66 54 963 Effects 20 | . . . 20 Shutdowns 2 | . . . 2 Interference 2 | . . . 2 Matter Decay 2 | . . . 2 Short Circuit 4 | . . . 4 Damage (minor) 2 | . . . 2 Damage (major) 8 | . . . 8 Siege Activations . | . . . . Martial Activations . | . . . . Shielding Activations . | . . . . Robots Disrupted . | . . . . Combat Hostiles . | . . . . Robots Corrupted . | . . . . Combat Hostiles . | . . . . Parts Fried . | . . . . Impact Corruptions . | . . . . Robots Melted 1 | . . . 1 Combat Hostiles 1 | . . . 1 Parts Melted 3 | . . . 3 Heat Transferred 1873 | . . 99 1774 Parts Sabotaged . | . . . . Parts Stolen . | . . . . Parts Stripped . | . . . . Power Chain Reactions . | . . . . Alert | -11 -10 -9 -8 ------- Run | Yrd Mat Mat Mat Maximum Alert Level . | . . . . Low Security (%) 100 | 100 100 100 100 Level 1 . | . . . . Level 2 . | . . . . Level 3 . | . . . . Level 4 . | . . . . Level 5 . | . . . . High Security . | . . . . Max Security . | . . . . Peak Influence 180 | 20 70 35 180 Initial 20 | . . 20 10 Average 33 | 2 19 7 68 Influence Increases 640 | 20 110 62 448 Destroy 0b10 Robot/C 300 | 20 80 20 180 Destroy 0b10 Robot/NC 10 | . 5 5 . Destroy Leader 80 | . 20 10 50 Successful Hack 27 | . 5 2 20 Disable Machine 15 | . . . 15 Anti-Garrison Action 150 | . . . 150 Destroy Structure 13 | . . 10 3 Lose Combat Pursuer 45 | . . 15 30 Influence Decreases 549 | 20 60 87 382 Entered New Map 45 | . . 30 15 Time Decay 271 | 20 50 57 144 Lost Part 233 | . 10 . 223 Squads Dispatched 6 | . 1 1 4 Investigation 2 | . . 1 1 Extermination . | . . . . Reinforcement 1 | . 1 . . Assault 2 | . . . 2 Garrison 1 | . . . 1 Intercept . | . . . . Searches Triggered . | . . . . Construction Impeded . | . . . . Haulers Reinforced . | . . . . Active Scanning Responses . | . . . . Cargo Convoy Interrupts . | . . . . Stealth | -11 -10 -9 -8 --------- Run | Yrd Mat Mat Mat Distress Signals 3 | . . . 3 Communications Jammed . | . . . . Distress Signals . | . . . . Times Spotted 41 | 1 10 5 25 Peak Tracking Total 13 | 1 4 3 13 Tactical Retreats 3 | . . 1 2 Traps | -11 -10 -9 -8 ------- Run | Yrd Mat Mat Mat Traps Triggered 1 | . . . 1 Indirectly . | . . . . Trap Hack Attempts . | . . . . Triggered . | . . . . Disarmed . | . . . . Reprogrammed . | . . . . Reused . | . . . . Traps Extracted . | . . . . Installed . | . . . . Triggered . | . . . . Machines | -11 -10 -9 -8 ---------- Run | Yrd Mat Mat Mat Machines Disabled 2 | . . . 2 Max in Single Turn 1 | . . . 1 Garrison Access 1 | . . . 1 Machines Repaired . | . . . . Machines Dismantled . | . . . . Machines Sabotaged . | . . . . Overloaded Fab Kills . | . . . . Hacking | -11 -10 -9 -8 --------- Run | Yrd Mat Mat Mat Machines Accessed 6 | . 1 3 2 Terminals 4 | . 1 2 1 Fabricators . | . . . . Repair Stations 1 | . . . 1 Recycling Units . | . . . . Scanalyzers 1 | . . 1 . Garrison Access . | . . . . Total Hacks 14 | . 3 8 3 Successful 11 | . 2 7 2 Failed 3 | . 1 1 1 Catastrophic . | . . . . Database Lockouts . | . . . . Manual 1 | . . . 1 Terminals 11 | . 3 6 2 Fabricators . | . . . . Repair Stations 1 | . . . 1 Recycling Units . | . . . . Scanalyzers 2 | . . 2 . Garrison Access . | . . . . Terminal Hacks 8 | . 2 5 1 Record 4 | . . 4 . Alert Level 1 | . 1 . . Dispatch Records 2 | . . 1 1 Zone Layout 1 | . 1 . . Fabricator Hacks . | . . . . Repair Station Hacks 1 | . . . 1 Refit 1 | . . . 1 Recycling Unit Hacks . | . . . . Scanalyzer 2 | . . 2 . Insert Component 1 | . . 1 . Analyze 1 | . . 1 . Garrison Access Hacks . | . . . . Unauthorized Hacks . | . . . . Terminals . | . . . . Fabricators . | . . . . Repair Stations . | . . . . Recycling Units . | . . . . Scanalyzers . | . . . . Garrison Access . | . . . . Data Cores Recovered . | . . . . Used . | . . . . Hacking Detections 4 | . 1 1 2 Full Trace Events 1 | . . 1 . Feedback Events . | . . . . Feedback Blocked . | . . . . Robot Schematics Acquired . | . . . . Robots Built . | . . . . Authchips . | . . . . Time . | . . . . Total Robot Build Rating . | . . . . Part Schematics Acquired 1 | . . 1 . Parts Built . | . . . . Authchips . | . . . . Time . | . . . . Total Part Build Rating . | . . . . Parts Repaired . | . . . . Time . | . . . . Parts Recycled . | . . . . Recycled Matter . | . . . . Retrieved Matter . | . . . . Retrieved Components . | . . . . Parts Scanalyzed 1 | . . 1 . Part Schematics Acquired 1 | . . 1 . Parts Damaged . | . . . . Bothacking | -11 -10 -9 -8 ------------ Run | Yrd Mat Mat Mat Used RIF Installer . | . . . . Robots Hacked . | . . . . Non-combat . | . . . . Combat . | . . . . Robot Hacks Applied . | . . . . Relay Couplers Released 2 | . . . 2 Machine Destruction 2 | . . . 2 Fabnet Peak Effective % . | . . . . Robots Rewired . | . . . . Allies Hacked . | . . . . Hacks Repelled . | . . . . Allies | -11 -10 -9 -8 -------- Run | Yrd Mat Mat Mat Total Allies . | . . . . Largest Group . | . . . . Highest-Rated Group . | . . . . Highest-Rated Ally . | . . . . Total Orders . | . . . . Ally Attacks . | . . . . Total Damage . | . . . . Kills . | . . . . Allies Corrupted . | . . . . Allies Melted . | . . . . Intel | -11 -10 -9 -8 ------- Run | Yrd Mat Mat Mat Active Infowar (turns) 164 | . . . 164 Seismic 164 | . . . 164 Robot Analysis Total . | . . . . Derelict Logs Recovered . | . . . . Drone Launches . | . . . . Drone Recoveries . | . . . . Exploration | -11 -10 -9 -8 ------------- Run | Yrd Mat Mat Mat Turns Passed 870 | 108 164 244 354 Spaces Moved 457 | 86 54 172 145 Core 54 | 14 . . 40 Treads . | . . . . Legs 398 | 72 54 172 100 Wheels . | . . . . Hover 5 | . . . 5 Flight . | . . . . Fastest Speed 50 | 50 120 120 50 Average Speed 117 | 108 120 120 118 Slowest Speed 300 | 120 120 120 300 Overloaded Moves . | . . . . Propulsion Burnouts . | . . . . Robots Hopped . | . . . . Potential Cave-ins . | . . . . Cave-ins Triggered . | . . . . Exploration Rate (%) 15 | 6 20 19 17 Regions Visited 3 Branch Regions . Pre-discovered Areas . | . . . . Known Exits Taken . | . . . . Unknown Exits Taken 3 | 1 1 1 . Scrap Searched . | . . . . Spaces Dug . | . . . . Terrain Destroyed 14 | . . 10 4 Melee . | . . . . Projectile 4 | . . . 4 AOE 10 | . . 10 . Terrain Rammed . | . . . . Walls Destroyed . | . . . . Machines Disabled . | . . . . Actions | -11 -10 -9 -8 --------- Run | Yrd Mat Mat Mat Total 643 | 96 125 192 230 Wait 71 | . 56 . 15 Move 454 | 85 53 171 145 Hop . | . . . . Pick Up 5 | 4 . 1 . Fast Attach 14 | 5 . 3 6 Attach 9 | . . 2 7 Detach . | . . . . Swap 14 | . 2 8 4 Drop . | . . . . Fire 60 | 1 14 3 42 Melee . | . . . . Ram 1 | . . . 1 Kick 7 | 1 . 1 5 Crush . | . . . . Escape Stasis . | . . . . Rewire . | . . . . Trap . | . . . . Miscellaneous 8 | . . 3 5 Route ------- -11/Scrapyard -10/Materials -9/Materials -8/Materials History --------- Turn | Location | Event 2 | -11/Scrapyard | Met Revision 17 60 | -11/Scrapyard | Discovered new exit (range 8) 109 | -11/Scrapyard | Entered Materials 267 | -10/Materials | Discovered new exit (range 6) 273 | -10/Materials | Entered another Materials area 273 | -9/Materials | Evolved 2 slots: Propulsion x1, Utility x1 326 | -9/Materials | Build established: Mutant 504 | -9/Materials | Discovered new exit (range 11) 517 | -9/Materials | Entered another Materials area 517 | -8/Materials | Evolved 2 slots: Utility x1, Weapon x1 687 | -8/Materials | Lost 4 parts (1n2u1w) 760 | -8/Materials | Core integrity fell below 50% 815 | -8/Materials | Lost 14 parts (2p7n2u3w) 822 | -8/Materials | Core integrity fell below 20% 871 | -8/Materials | Destroyed by L-31 Rogue with Katana Last Messages --------------- K-01 Serf collects debris. Y-45 Defender destroyed. Switching to secondary target: G-50 Soldier. R-06 Scavenger collects Lgt. Treads. K-01 Serf collects debris. R-06 Scavenger collects Imp. Ion Engine. R-06 Scavenger collects Lgt. Treads. K-01 Serf collects debris. Backup Power III destroyed. K-01 Serf collects debris. Hvy. Laser melted. G-50 Soldier destroyed. Switching to secondary target: L-31 Rogue. R-06 Scavenger collects Carbon-fiber Leg. K-01 Serf collects debris. Aluminum Leg destroyed. Backup Plating III destroyed. R-06 Scavenger collects Lgt. Angular Momentum Engine. K-01 Serf cleans the Repair Station. Map ----- +----------------------------------------------------+ | ?????????????????????????????????????????????????? | | ?????????????????????????????????????????????????? | | ?????????????????????????????????????????????????? | | ?????????????????????????????????????????????????? | | ?????????????????????????????????????????????????? | | ?????????????????????????????????????????????????? | | ?????????????????????????????????????????????????? | | ?????????????????????????????????????????????????? | | ????????????????##???????????????????????????????? | | ???????????????? ???????????????????????????????? | | ???????????????? ???????????????????????????????? | | ???????????????? #???????????????????????????????? | | ???????????????# #???????????????????????????????? | | ??#????????????# #???????????????????????????????? | | ??# ???????????# #???????????????????????????????? | | ??# ???????????# #???????????????????????????????? | | ### ???????????# #???????????????????????????????? | | ???????????# #???????????????????????????????? | | ?????????### ###?????????????????????????????? | | ########## m ########??????????????????????? | | ??# g# #??????????????????????? | | ??# gg% "" #??????????????????????? | | ??# #h """#??????????????????????? | | ??# ######## #iY R"#??????????????????????? | | ??# #??????#######% g"""#??????????????????????? | | ??# #????????????# kgl@#??????????????????????? | | ??# #????????????########??????????????????????? | | ??# #??????????????????????????????????????????? | | ??# #????##????????????????????????????????????? | | ??# #####"#####????????????????????????????????? | | ??# # % #????????????????????????????????? | | ### #%%%%""%% #????????????????????????????????? | | # """"""% #????????????????????????????????? | | # """"""% #????????????????????????????????? | | / """"""% #??????????###################???? | | # ""%"""% #??????????# # #???? | | # %% %% #??????????# # """ #???? | | # %#??????????# """# """ #???? | | """ #########"#??????????# """# """ #???? | | """ #???# #?###??????????# """# #???? | | """ #???##???????????????# """# """ "#???? | | #????????????????????# """# """ T#???? | | !! #????????????????????# # """ "#???? | | % #????????????????????# # #???? | | ############################+######+####???? | | " #???? | | #???? | | #???? | | ##############################################???? | | ?????????????????????????????????????????????????? | +----------------------------------------------------+ Best States ------------- Heat Dissipation 41 Energy Generation 14 Energy Capacity 265 Matter Stores 328 Matter Capacity 400 Sight Range 16 Terrain Scan Density 10 Armor Coverage 305 Evasion (%) 55 Recoil Reduction 4 Item Schematics ----------------- Aluminum Leg | -9/Materials | Scanalyzed Robot Schematics ------------------ None Fabricated ------------ Nothing Repaired ---------- Nothing Alien Tech Used ----------------- None Achievements -------------- None Challenges ------------ None Game ------ Seed AssemblyLaserModule Manual? 0 Play Time 00:32:00 Cumulative 18.1 hours Start 2025.08.26 @ 22:43:19 End 2025.09.10 @ 11:17:29 Sessions 3 Manual Loads 0 Difficulty Rogue Special Mode None Game No. 19 Rogue 19 Adventurer 0 Explorer 0 Win Type - Total 0 Types 0/0/0/0/0/0/0/0/0/0 Lore% 4 Gallery% 15 Achievement% 14 Wizard Run 0 Options --------- Layout 1 ASCII 0 Keyboard 0 Movement Arrows Keybinds 0 Fullscreen 1 Font 24/Smallcaps Map View 50x40 Zoom Use 0% Tactical HUD 0 Map Filters NONE Filters NONE Steam 1 RUN: 0a137181-c956-4eb0-941c-0a67e82df132